{"text_format":"1","workbook":"xlsx","n_sheets":5,"sheets":["Tableau 1","Tableau 2","Tableau3","données_graphs","Feuil1"],"not_rendered":{"charts":0,"images":0,"macros":0,"external_links":0,"defined_names":10,"comments":0,"pivot_tables":0},"unopened":[],"bounds":{"document_bytes":16777216,"sheet_cells":100000,"rows_first":2000,"rows_last":500,"rows_between":2000,"halvings":0,"cell_chars":16384,"cell_head_chars":4096},"cells_cut":0,"cells_raw":0,"read":"whole","date_system":"1900"}

{"sheet":"Tableau 1","index":0,"n_rows":24,"n_cols":11,"rows_kept":24,"cut":false,"hidden":false,"merged":[[1,0,1,10],[0,0,0,10],[23,0,23,10],[21,0,21,10],[22,0,22,10],[3,1,3,5],[20,0,20,10],[3,6,3,10],[4,6,4,8],[4,1,4,3]]}
["Tableau 1"]
["Salariés ayant bénéficié de la revalorisation du Smic au 1er janvier 2016 et au 1er janvier 2017, par taille d’entreprise"]
[]
[null,"Au 1er janvier 2016",null,null,null,null,"Au 1er janvier 2017"]
[null,"Ensemble des bénéficiaires",null,null,"Temps complet","Temps \npartiel","Ensemble des bénéficiaires",null,null,"Temps complet","Temps \npartiel"]
[null,"Effectifs","En % des effectifs totaux","Part de femmes \nparmi les \nbénéficiaires","En % des effectifs \nà temps \ncomplet","En % des effectifs \nà temps \npartiel","Effectifs","En % des effectifs totaux","Part de femmes \nparmi les \nbénéficiaires","En % des effectifs \nà temps \ncomplet","En % des effectifs \nà temps \npartiel"]
["1 à 9 salariés",710000,24.2,53.6,19.2,36,720000,24.3,52.3,19.7,35.299999999999997]
["1 salarié",120000,32.9,57.7,26.3,42.4,120000,31.3,56.9,25.8,39.5]
["2 salariés",120000,29.4,56.2,23.3,40.1,120000,29.3,56,23.8,39.299999999999997]
["de 3 à 5 salariés",270000,24.2,52.5,19.399999999999999,35.5,280000,25,52.4,20.399999999999999,36.200000000000003]
["de 6 à 9 salariés",200000,19,49.7,15.5,30.3,200000,18.899999999999999,46.9,15.9,28.9]
["10 salariés ou plus",890000,7.2,59,4.9000000000000004,19.100000000000001,930000,7.4,57.4,5.0999999999999996,19.399999999999999]
["de 10 à 19 salariés",150000,10.6,52.4,8.1,23.1,140000,10.1,49.7,7.8,21]
["de 20 à 49 salariés",210000,10.6,55.9,6.9,28,230000,11.6,55.4,7.5,30.9]
["de 50 à 99 salariés",140000,11,60.9,7,29.3,140000,11.6,59.5,7.8,28.4]
["de 100 à 249 salariés",120000,7.6,61.1,5.5,19.600000000000001,120000,7.3,57.4,5.7,16.8]
["de 250 à 499 salariés",70000,5.9,60.7,4.4000000000000004,15.8,70000,5.7,58.9,4.3,14.8]
["500 salariés ou plus",200000,4.0999999999999996,63.7,2.7,11.6,230000,4.5,62.7,2.9,12.9]
["Total",1600000,10.5,56.6,7.3,24.3,1650000,10.6,55.2,7.5,24.2]
[]
["Note : les tailles d'entreprise sont définies en fonction de leur nombre de salariés comptabilisés en personnes physiques, quel que soit leur temps de travail."]
["Lecture : dans les entreprises de 1 à 9 salariés, 720 000 personnes, soit 24,3 % des salariés, ont bénéficié de la revalorisation du Smic au 1er janvier 2017 ; dans ces mêmes entreprises, 35,3 % des salariés à temps partiel ont été concernés."]
["Champ : ensemble des salariés sauf apprentis, stagiaires, intérimaires ; ensemble des secteurs sauf agriculture, administration, syndicats de copropriété, associations loi 1901 de l'action sociale, activités des ménages, activités extraterritoriales ; France métropolitaine."]
["Source : Dares, enquêtes Acemo."]

{"sheet":"Tableau 2","index":1,"n_rows":65,"n_cols":8,"rows_kept":65,"cut":false,"hidden":false,"merged":[[4,2,6,2],[5,4,5,5],[3,1,3,5],[0,0,0,7],[1,0,1,7],[64,0,64,7],[62,0,62,7],[61,0,61,7],[4,3,6,3],[58,0,58,7],[59,0,59,7],[57,0,57,7],[63,0,63,7],[60,0,60,7],[5,6,5,7],[4,4,4,7],[4,0,6,0],[4,1,6,1]]}
["Tableau 2"]
["Salariés ayant bénéficié de la revalorisation du Smic au 1er janvier 2016 et au 1er janvier 2017, par branche professionnelle regroupée \net selon les principales conventions collectives de branche"]
[]
[null,null,null,null,null,null,null,"En %"]
["Niveau agrégé Cris1","Conventions regroupées pour l'information statistique (Cris) \net principales conventions collectives (IDCC)","Effectifs salariés au \n31 décembre 2015 *","Proportion couverte par les enquêtes Acemo **","Proportion de salariés ayant bénéficié de la revalorisation du Smic au 1er janvier 2016 et au 1er janvier 2017"]
[null,null,null,null,"Ensemble des salariés",null,"Salariés à temps partiel"]
[null,null,null,null,"1er janvier 2016","1er janvier 2017","1er janvier 2016","1er janvier 2017"]
["A ","MÉTALLURGIE ET SIDÉRURGIE",1622100,99.332693724918016,3,3,6,7]
["dont ","0054 - Métallurgie Région Parisienne",234600,98.402230383375141,2,2,5,6]
[null,"0650 - Métallurgie cadres",453700,99.592738843187789,"ε","ε","ε","ε"]
["B ","BÂTIMENT ET TRAVAUX PUBLICS ***",1351300,97.551016188011147,8,8,21,24]
["dont ","1596 - Bâtiment ouvriers jusqu'à 10 Salariés",320800,99.195706741878112,17,19,27,31]
[null,"1597 - Bâtiment ouvriers plus de 10 Salariés",470100,99.396484050191063,4,4,13,11]
[null,"1702 - Travaux publics ouvriers",165700,98.910952823807918,3,3,12,15]
["C ","CHIMIE ET PHARMACIE",512700.00000000006,97.891300563506448,4,4,11,11]
["dont ","0044 - Industries chimiques",218300,98.763440375654554,2,2,3,4]
[null,"0176 - Industrie pharmaceutique",129100,99.382970932633199,"ε","ε","ε","ε"]
[null,"1996 - Pharmacie d'officine",119200,95.064608910345058,11,11,17,17]
["D ","PLASTIQUES, CAOUTCHOUC ET COMBUSTIBLES",218400,98.453004891684131,4,4,8,7]
["dont ","0292 - Plasturgie",118300,99.42769345830861,6,6,9,9]
["E ","VERRE ET MATÉRIAUX DE CONSTRUCTION",196800,99.107047943021158,5,6,15,13]
["F ","BOIS ET DÉRIVÉS",249000,97.629836555309794,8,11,16,20]
["G ","HABILLEMENT, CUIR, TEXTILE",470900,98.035128991613774,21,23,36,39]
["dont ","0675 - Succursales de vente au détail d'habillement",119800,98.203355995404806,22,20,30,30]
["H ","CULTURE ET COMMUNICATION",533700,97.318699075127583,10,11,32,31]
["I ","AGRO-ALIMENTAIRE",834800,96.826702226492884,13,13,28,26]
["dont ","0843 - Boulangeries pâtisseries artisanales",135700,98.722878759457259,20,21,27,27]
["J ","COMMERCE DE GROS ET IMPORT-EXPORT",383700,98.35094921300194,6,5,20,17]
["dont ","0573 - Commerces de gros",341600,98.305723692810957,7,5,20,17]
["K ","COMMERCE PRINCIPALEMENT ALIMENTAIRE",690600,97.871396430493249,13,15,19,21]
["dont ","2216 - Commerce détail et gros à prédominance alimentaire",690300,97.861010911918129,13,15,19,21]
["L ","COMMERCE DE DÉTAIL PRINCIPALEMENT NON ALIMENTAIRE",384500,95.572921385251348,13,16,28,32]
["dont ","1517 - Commerces de détail non alimentaire",106600,97.649712721243205,22,25,39,44]
["M ","SERVICES DE L'AUTOMOBILE ET DES MATÉRIELS ROULANTS",506800,97.606836936092066,7,8,22,22]
["dont ","1090 - Services de l'automobile",422700,98.481823690502466,8,9,23,22]
["N ","HÔTELLERIE, RESTAURATION ET TOURISME",981300,97.089437142390921,37,30,61,54]
["dont ","1501 - Restauration rapide",171000,97.104896689121205,63,65,75,75]
[null,"1979 - Hôtels Cafés Restaurants",610000,97.524835036732441,34,21,57,37]
["O ","TRANSPORTS (HORS STATUTS)",888200,98.221754333023569,10,10,10,11]
["dont ","0016 - Transports routiers",679500,98.732619288923601,12,13,14,14]
["P ","SECTEUR SANITAIRE ET SOCIAL",2000200,47.271575519654043,15,16,20,23]
["dont ","2264 - Hospitalisation privée",272300,91.148986395382011,16,17,19,18]
["Q ","BANQUES, ÉTABLISSEMENTS FINANCIERS ET ASSURANCES",749300,96.232440972929652,2,2,3,3]
["dont ","1672 - Sociétés d'assurances",140700,97.456225158448817,"ε","ε","ε","ε"]
[null,"2120 - Banques",218300,98.262218295322569,"ε","ε","ε","ε"]
["R ","IMMOBILIER ET ACTIVITÉS TERTIAIRES LIÉES AU BÂTIMENT",320900,79.844951806055889,10,10,20,20]
["dont ","1527 - Immobilier",141300,97.018696663000654,15,16,29,29]
["S ","BUREAUX D'ÉTUDES ET PRESTATIONS DE SERVICES AUX ENTREPRISES",986100,98.251608638610236,8,8,25,26]
["dont ","1486 - Bureaux d'études techniques SYNTEC",857100,98.430829224248981,3,3,12,12]
["dont ","2098 - Prestataires de services secteur tertiaire",127100,97.498181939765786,40,36,53,55]
["T ","PROFESSIONS JURIDIQUES ET COMPTABLES",256399.99999999997,96.610857724110772,4,5,9,10]
["dont ","0787 - Cabinets d'experts comptables",138400,97.170081998157684,3,4,5,7]
["U ","NETTOYAGE, MANUTENTION, RÉCUPÉRATION ET SÉCURITÉ",663200,97.175857476741299,5,6,5,6]
["dont ","1351 - Prévention et sécurité",160800,96.20791462390639,11,11,18,15]
[null,"3043 - Entreprises de propreté et services associés",371200,98.031856009076535,4,5,4,4]
["V ","BRANCHES NON AGRICOLES DIVERSES",620900,97.125884036200873,18,18,27,28]
[]
["* Ces effectifs sont issus d'une exploitation exhaustive des DADS 2014 . Ils sont relatifs à l'ensemble des salariés, hors agriculture, administration, activités des ménages, activités extraterritoriales. Pour les regroupements CRIS allant de W à Y (statuts, conventions d'entreprise, intérimaires, conventions agricoles, fonction publique, etc.), le taux de couverture par les enquêtes Acemo (encadré 2) est faible (20 %). Aussi, les données relatives à ces regroupements ne figurent pas ici."]
["** Proportion couverte par les enquêtes Acemo (encadré 2), c'est-à-dire hors départements d'outre-mer, apprentis, stagiaires, intérimaires, agriculture, administration, associations loi 1901 de l'action sociale, activités des ménages et activités extraterritoriales."]
["*** Ne figure pas ici la convention collective \"Bâtiment ETAM\" (IDCC 2609), dont l'effectif salarié est de 151 300 en 2015. En effet, cette convention collective n'est pratiquement jamais appliquée de façon principale dans les établissements de la Cris \"Bâtiment et travaux publics\" (où 74 % des salariés sont ouvriers), ce qui y rend impossible une estimation de la proportion de salariés bénéficiaires de la revalorisation du Smic par les enquêtes Acemo."]
["ε : proportion inférieure à 1 %."]
["Notes :\n- pour l'estimation des effectifs salariés, la convention collective est propre au salarié (en principe, la convention collective est déterminée en fonction de l'activité principale de l'établissement, mais, à titre dérogatoire, certains secteurs ont développé des conventions catégorielles, ce qui conduit à une coexistence de plusieurs conventions collectives dans le même établissement) ; dans les enquêtes Acemo, la convention collective est celle appliquée de façon principale par l'établissement (en termes de nombre de salariés couverts).\n- seules figurent ici les conventions collectives dont l'effectif salarié au 31 décembre 2014 est supérieur à 100 000 et dont les données statistiques sont diffusables (encadré 3)."]
["Lecture : la Cris \"Métallurgie et Sidérurgie\" couvre 1 642 200 salariés au 31 décembre 2014 ; dans les entreprises qui appliquent de façon principale une convention collective de ce regroupement Cris, 3 % des salariés ont bénéficié de la revalorisation du Smic au 1er janvier 2017 ; dans ces mêmes entreprises, 7 % des salariés à temps partiel ont été concernés."]
["Champ : \n- colonnes 3 et 4 : ensemble des salariés ; ensemble des secteurs sauf agriculture, administration, activités des ménages, activités extraterritoriales ; France entière.\n- colonnes suivantes : ensemble des salariés sauf apprentis, stagiaires, intérimaires ; ensemble des secteurs sauf agriculture, administration, syndicats de copropriété, associations loi 1901 de l'action sociale, activités des ménages, activités extraterritoriales ; France métropolitaine."]
["Sources :  Insee, DADS 2015 (colonnes 3 et 4) ; Dares, enquêtes Acemo (colonnes suivantes)."]

{"sheet":"Tableau3","index":2,"n_rows":35,"n_cols":5,"rows_kept":35,"cut":false,"hidden":false,"merged":[[0,0,0,4],[34,0,34,4],[5,1,5,2],[5,3,5,4],[1,0,1,4],[28,0,28,4],[29,0,29,4],[4,1,4,4],[30,0,30,4],[31,0,31,4],[32,0,32,4],[33,0,33,4]]}
["Tableau 3"]
["Salariés ayant bénéficié de la revalorisation du Smic au 1er janvier 2016 et au 1er janvier 2017, par secteur d'activité"]
[]
[null,null,null,null,"En %"]
[null,"Proportion de salariés ayant bénéficié de la revalorisation du Smic au 1er janvier 2016 et au 1er janvier 2017"]
[null,"Ensemble des salariés",null,"Salariés à temps partiel"]
[null,"1er janvier 2016","1er janvier 2017","1er janvier 2016","1er janvier 2017"]
["Industrie",4.8,5.3,13.4,13.1]
["Industries extractives",3.4,5.9,"NS ***","NS ***"]
["Industrie manufacturière",5.2,5.7,14.7,14.1]
["Production et distribution d'électricité, de gaz, de vapeur et d'air conditionné",0.5,0.8,1.2,3]
["Production et distribution d'eau ; assainissement, gestion des déchets et dépollution",1.9,2.9,3.8,6.9]
["Construction",8.1999999999999993,8.8000000000000007,22.9,24.1]
["Tertiaire",12.3,12.2,25.2,25]
["Commerce ; réparation d'automobiles et de motocycles",11.4,12.6,23.6,25.1]
["Transports et entreposage",5.7,6.5,7.7,9.1]
["Hébergement et restauration",38.299999999999997,31.2,61.8,54.1]
["Information et communication",2.5,2.6,7.2,7.9]
["Activités financières et d'assurance",2.9,3.6,7.9,9.1]
["Activités immobilières",11.1,10.3,24,21.6]
["Activités spécialisées, scientifiques et techniques",6,6.4,21.8,22.3]
["Activités de services administratifs et de soutien",12,11.7,13,12.3]
["Enseignement *",7.7,5.9,9.3000000000000007,8.5]
["Santé humaine et action sociale **",20,21.1,30.1,33]
["Arts, spectacles et activités récréatives",14.2,14.7,18.8,18.2]
["Autres activités de services",22.3,24.9,32.700000000000003,36.799999999999997]
["Ensemble",10.5,10.6,24.3,24.2]
[]
["* Hors enseignement public."]
["** Hors fonction publique hospitalière et associations loi 1901 de l'action sociale."]
["*** Résultat non significatif. Dans ce secteur d'activité, moins d’un millier de salariés concernés sont à temps partiel."]
["Note : les données sont présentées en nomenclature NAF rév. 2 en 21 postes (NAF 21) ; du fait du champ des enquêtes Acemo, quatre postes de la NAF 21 ne sont pas représentés ici (agriculture, administration, activités des ménages et activités extraterritoriales). "]
["Lecture : dans le secteur des activités immobilières, 10,3 % des salariés ont bénéficié de la revalorisation du Smic au 1er janvier 2017 ; dans ce même secteur, 21,6 % des salariés à temps partiel ont été concernés."]
["Champ : ensemble des salariés sauf apprentis, stagiaires, intérimaires ; ensemble des secteurs sauf agriculture, administration, syndicats de copropriété, associations loi 1901 de l'action sociale, activités des ménages, activités extraterritoriales ; France métropolitaine."]
["Source : Dares, enquêtes Acemo."]

{"sheet":"données_graphs","index":3,"n_rows":40,"n_cols":12,"rows_kept":40,"cut":false,"hidden":false,"merged":[]}
["Graphique 1 : Proportion de salariés concernés par les relèvements du Smic ou de la GMR parmi les entreprises du secteur concurrentiel",null,null,null,null,null,null,"Graphique 2: Proportion de femmes parmi les bénéficiaires de la revalorisation du Smic au 1er janvier 2017, par branche professionnelle regroupée"]
["année","Valeur du Smic\n(*)","année","% de bénéficiaires","évo en € \ncourants",null,null,"Cris","Proportion de femmes parmi les salariés \n(DADS 2015)","Proportion de femmes parmi les bénéficiaires de la revalorisation du Smic","rapport","écart"]
[1991,4.9800000000000004,{"$f":"CONCATENATE(A3,\"      \",B3)","v":"1991      4,98"},8.6,{"$f":"(B3/F3-1)*100","v":4.4025157232704615},4.7699999999999996,null,"A",22,35,{"$f":"J3/I3","v":1.5909090909090908},{"$f":"J3-I3","v":13}]
[1992,5.19,{"$f":"CONCATENATE(A4,\"      \",B4)","v":"1992      5,19"},8.6,{"$f":"(B4/B3-1)*100","v":4.2168674698795261},null,null,"B",11,18,1.6363636363636365,{"$f":"J4-I4","v":7}]
[1993,5.31,"1993      5,31",8.1,{"$f":"(B5/B4-1)*100","v":2.3121387283236761},null,null,"C",56,80,1.4285714285714286,24]
[1994,5.42,"1994      5,42",8.1999999999999993,{"$f":"(B6/B5-1)*100","v":2.0715630885122405},null,null,"D",30,52,1.7333333333333334,22]
[1995,5.64,"1995      5,64",11.2,4.0590405904058935,null,null,"E",23,39,1.6956521739130435,{"$f":"J7-I7","v":16}]
[1996,5.78,"1996      5,78",10.7,2.4822695035461084,null,null,"F",30,35,1.1666666666666667,5]
[1997,6.01,"1997      6,01",14.1,3.9792387543252428,null,null,"G",67,68,1.0149253731343284,1]
[1998,6.13,"1998      6,13",12.6,1.9966722129783676,null,null,"H",45,50,1.1111111111111112,5]
[1999,6.21,"1999      6,21",12.8,1.3050570962479524,null,null,"I",44,57,1.2954545454545454,13]
[2000,6.41,"2000      6,41",13.6,3.2206119162640823,null,null,"J",36,42,1.1666666666666667,6]
[2001,6.67,"2001      6,67",13.9,4.0561622464898583,null,null,"K",58,63,1.0862068965517242,5]
[2002,6.83,"2002      6,83",14,2.398800599700146,null,null,"L",50,59,1.18,9]
[2003,7.19,"2003      7,19",14.1,5.2708638360175808,null,null,"M",22,28,1.2727272727272727,6]
[2004,7.61,"2004      7,61",15.3,5.8414464534075172,null,null,"N",48,53,1.1041666666666667,5]
[2005,8.0299999999999994,"2005      8,03",16.3,5.5190538764783081,null,null,"O",23,17,0.73913043478260865,-6]
[2006,8.27,"2006      8,27",15.1,2.9887920298879322,null,null,"P",77,84,1.0909090909090908,7]
[2007,8.44,"2007      8,44",12.9,2.0556227327690468,null,null,"Q",60,70,1.1666666666666667,{"$f":"J19-I19","v":10}]
[2008,8.7100000000000009,"2008      8,71",13.9,3.199052132701441,null,null,"R",59,60,1.0169491525423728,1]
[2009,8.82,"2009      8,82",10.6,1.2629161882893092,null,null,"S",37,67,1.8108108108108107,30]
[2010,8.86,"2010      8,86",9.8000000000000007,0.45351473922901064,null,null,"T",73,75,1.0273972602739727,2]
[2011,"9,00","2011      9,00",10.6,1.5801354401805856,null,null,"U",42,34,0.80952380952380953,-8]
["2012 *",9.19,"2012 *      9,19",11.1,2.1111111111111081,null,null,"V",59,82,1.3898305084745763,{"$f":"J24-I24","v":23}]
[2013,9.43,"2013      9,43",12.3,2.6115342763873839]
[2014,9.5299999999999994,"2014      9,53",10.8,1.0604453870625585]
[2015,9.61,"2015      9,61",11.1,0.8394543546694555,null,null,null,0,0]
[2016,9.67,"2016      9,67",10.5,0.62434963579605096,null,null,null,100,100]
[2017,9.76,"2017      9,76",10.6,0.93071354705274167,null,null,"Note : les lettres figurant sur le graphique correspondent aux conventions regroupées pour l'information statistique (Cris) du tableau 2."]
[null,null,null,null,null,null,null,"Lecture : Dans les regroupements de branches situés au-dessus de la médiane, les femmes sont surreprésentées parmi les bénéficiaires de la revalorisation du Smic. "]
[null,null,null,null,null,null,null,"Champ : ensemble des salariés sauf apprentis, stagiaires, intérimaires ; ensemble des secteurs sauf agriculture, administration, syndicats de copropriété, associations loi 1901 de l'action sociale, activités des ménages, activités extraterritoriales ; France métropolitaine."]
["* converti en € avant 2001",null,null,null,null,null,null,"Sources : Insee, DADS 2015 ; Dares, enquêtes Acemo."]
[]
[]
["* Depuis 2010, la revalorisation du Smic s'effectue le 1er janvier, au lieu du 1er juillet.  En 2012, du fait de la revalorisation anticipée du Smic intervenue le 1er décembre 2011, l'information a été collectée sur le nombre de salariés concernés par la revalorisation à cette date, et non au 1er janvier 2012 (encadré 3)."]
["** Garantie mensuelle de rémunération. La GMR a été instaurée lors du passage aux 35 heures. Elle permettait aux salariés payés au Smic, dont l'horaire de travail avait été réduit, de bénéficier du maintien de leur rémunération antérieure. La loi du 17 janvier 2003, dite « Fillon », a programmé la disparition progressive de ce dispositif et la convergence du Smic et de la GMR au 1er juillet 2005."]
["Note : les évolutions doivent être analysées avec précaution, du fait des modifications successives apportées au dispositif de mesure. La période 2003-2005 a notamment fait l'objet d'un dispositif d'observation spécifique (encadré 2)."]
["Lecture : au 1er janvier 2017, le Smic a été revalorisé de 0,9 % ; 10,6 % des salariés ont été concernés par cette revalorisation."]
["Champ : ensemble des salariés sauf apprentis, stagiaires, intérimaires ; ensemble des secteurs sauf agriculture, administration, syndicats de copropriété, associations loi 1901 de l'action sociale, activités des ménages, activités extraterritoriales ; France métropolitaine."]
["Source : Dares, enquêtes Acemo."]

{"sheet":"Feuil1","index":4,"n_rows":0,"n_cols":0,"rows_kept":0,"cut":false,"hidden":false,"merged":[]}